[Event "Championnat du monde jeunes U12F"]
[Date "2024.11.22"]
[White "Sevastsyanchuk, Anastasiya"]
[Black "Li, Sophie"]
[WhiteElo "1595"]
[BlackElo "1798"]
[Round "7.13"]
[Result "0-1"]
[TimeControl "5400+30"]

1. e4 {[%clk 1:30:57]} 1... c5 {[%clk 1:30:47]} 2. Nf3 {[%clk 1:31:16]} 2... a6
{[%clk 1:30:59]} 3. c4 {[%clk 1:26:02]} 3... e6 {[%clk 1:30:37]} 4. Nc3 {[%clk
1:24:59]} 4... Nc6 {[%clk 1:30:33]} 5. d4 {[%clk 1:23:53]} 5... cxd4 {[%clk
1:30:32]} 6. Nxd4 {[%clk 1:24:08]} 6... Qc7 {[%clk 1:29:54]} 7. Be3 {[%clk
1:18:51]} 7... Nf6 {[%clk 1:26:47]} 8. Be2 {[%clk 1:17:52]} 8... Bd6 {[%clk
1:25:51]} 9. Qd2 {[%clk 1:16:23]} 9... Nxd4 {[%clk 1:22:16]} 10. Bxd4 {[%clk
1:14:37]} 10... Bf4 {[%clk 1:17:20]} 11. Be3 {[%clk 1:13:03]} 11... Bxe3 {[%clk
1:13:51]} 12. Qxe3 {[%clk 1:13:16]} 12... d6 {[%clk 1:11:27]} 13. f4 {[%clk
1:10:03]} 13... Bd7 {[%clk 1:07:04]} 14. e5 {[%clk 1:09:42]} 14... Ng8 {[%clk
1:04:28]} 15. Qg3 {[%clk 1:09:54]} 15... Ne7 {[%clk 1:03:32]} 16. Qxg7 {[%clk
1:03:42]} 16... Rg8 {[%clk 0:59:17]} 17. Qf6 {[%clk 1:03:54]} 17... dxe5 {[%clk
0:50:57]} 18. fxe5 {[%clk 1:02:01]} 18... Bc6 {[%clk 0:47:25]} 19. Bh5 {[%clk
0:59:02]} 19... O-O-O {[%clk 0:34:05]} 20. Bxf7 {[%clk 0:45:09]} 20... Rxg2
{[%clk 0:33:25]} 21. Bxe6+ {[%clk 0:45:05]} 21... Kb8 {[%clk 0:33:46]} 22. Bd5
{[%clk 0:44:52]} 22... Nxd5 {[%clk 0:31:52]} 23. cxd5 {[%clk 0:45:12]} 23...
Bxd5 {[%clk 0:31:21]} 24. O-O-O {[%clk 0:43:13]} 24... Rg6 {[%clk 0:28:04]} 25.
Qh4 {[%clk 0:41:55]} 25... Rc6 {[%clk 0:27:16]} 26. Rd3 {[%clk 0:40:13]} 26...
Rd7 {[%clk 0:25:19]} 27. Re1 {[%clk 0:26:59]} 27... Bxa2 {[%clk 0:24:05]} 28.
Qg3 {[%clk 0:25:57]} 28... Rxd3 {[%clk 0:20:30]} 29. Qxd3 {[%clk 0:26:20]} 29...
Be6 {[%clk 0:19:54]} 30. Qd4 {[%clk 0:22:58]} 30... Qa5 {[%clk 0:18:07]} 31. Kd2
{[%clk 0:18:07]} 31... Qc7 {[%clk 0:14:41]} 32. Rf1 {[%clk 0:18:08]} 32... Qe7
{[%clk 0:13:23]} 33. Rf6 {[%clk 0:14:55]} 33... Qg7 {[%clk 0:09:14]} 34. Qd8+
{[%clk 0:14:03]} 34... Ka7 35. Qd4+ {[%clk 0:14:17]} 35... b6 {[%clk 0:09:30]}
36. Ne4 {[%clk 0:08:48]} 36... Qg2+ {[%clk 0:07:41]} 37. Rf2 {[%clk 0:09:02]}
37... Qg4 {[%clk 0:06:54]} 38. Qe3 {[%clk 0:00:55]} 38... Bf5 {[%clk 0:06:45]}
39. Nf6 {[%clk 0:01:10]} 39... Rc2+ {[%clk 0:07:01]} 40. Ke1 {[%clk 0:01:27]}
40... Qg1+ {[%clk 0:07:21]} 0-1

[Variant "Standard"]
[Site "Europe Echecs"]

[Event "Championnat du monde jeunes U12F"]
[Date "2024.11.22"]
[White "Telyuk, Anastasiya"]
[Black "Pratitee Bordoloi"]
[WhiteElo "1603"]
[BlackElo "1929"]
[Round "7.14"]
[Result "0-1"]
[TimeControl "5400+30"]

1. e4 {[%clk 1:30:57]} 1... c6 {[%clk 1:30:51]} 2. d4 {[%clk 1:31:20]} 2... d5
{[%clk 1:31:13]} 3. e5 {[%clk 1:31:37]} 3... Bf5 {[%clk 1:31:27]} 4. c4 {[%clk
1:31:58]} 4... e6 {[%clk 1:31:24]} 5. Nc3 {[%clk 1:32:19]} 5... Ne7 {[%clk
1:31:07]} 6. a3 {[%clk 1:32:13]} 6... h6 {[%clk 1:30:37]} 7. c5 {[%clk 1:31:46]}
7... Nd7 {[%clk 1:29:48]} 8. b4 {[%clk 1:30:46]} 8... b6 {[%clk 1:27:45]} 9. Nf3
{[%clk 1:26:19]} 9... a5 {[%clk 1:24:44]} 10. Be3 {[%clk 1:26:20]} 10... Qc7
{[%clk 1:23:37]} 11. Be2 {[%clk 1:23:16]} 11... g5 {[%clk 1:20:31]} 12. h3
{[%clk 1:17:46]} 12... Bg7 {[%clk 1:19:29]} 13. O-O {[%clk 1:16:34]} 13... O-O
{[%clk 1:16:35]} 14. Qd2 {[%clk 1:13:10]} 14... Bh7 {[%clk 1:13:38]} 15. Nh2
{[%clk 1:06:58]} 15... Nf5 {[%clk 1:10:58]} 16. Ng4 {[%clk 1:02:33]} 16... Rfd8
{[%clk 1:05:05]} 17. Na4 {[%clk 0:36:24]} 17... Kh8 {[%clk 0:54:26]} 18. Qc1
{[%clk 0:27:40]} 18... bxc5 {[%clk 0:49:41]} 19. bxc5 {[%clk 0:27:33]} 19...
Rab8 {[%clk 0:49:04]} 20. Qc3 {[%clk 0:20:35]} 20... Nxe5 {[%clk 0:41:58]} 21.
dxe5 {[%clk 0:10:00]} 21... d4 {[%clk 0:42:05]} 22. Bxd4 {[%clk 0:06:22]} 22...
Nxd4 {[%clk 0:41:23]} 23. Bc4 {[%clk 0:04:18]} 23... Bf5 {[%clk 0:33:28]} 24.
Rad1 {[%clk 0:01:30]} 24... Bxe5 {[%clk 0:27:31]} 25. Nxe5 {[%clk 0:01:16]}
25... Qxe5 {[%clk 0:27:58]} 26. Rfe1 {[%clk 0:01:20]} 26... Qg7 {[%clk 0:27:49]}
27. Rd2 {[%clk 0:00:48]} 27... g4 {[%clk 0:27:10]} 28. hxg4 {[%clk 0:00:42]}
28... Bxg4 {[%clk 0:24:13]} 29. Re4 {[%clk 0:00:47]} 29... Bf3 {[%clk 0:23:50]}
30. Bf1 {[%clk 0:00:36]} 30... Bxe4 {[%clk 0:24:11]} 0-1

[Variant "Standard"]
[Site "Europe Echecs"]

[Event "Championnat du monde jeunes U12F"]
[Date "2024.11.22"]
[White "Xikmatkhonova, Mokhinur"]
[Black "Siskou, Evangelia"]
[WhiteElo "1726"]
[BlackElo "1884"]
[Round "7.15"]
[Result "1/2-1/2"]
[TimeControl "5400+30"]

1. e4 {[%clk 1:30:52]} 1... c5 {[%clk 1:30:52]} 2. Nf3 {[%clk 1:31:18]} 2... Nc6
{[%clk 1:31:11]} 3. d4 {[%clk 1:31:40]} 3... cxd4 {[%clk 1:31:34]} 4. Nxd4
{[%clk 1:32:09]} 4... g6 {[%clk 1:31:50]} 5. c4 {[%clk 1:32:32]} 5... Bg7 {[%clk
1:32:11]} 6. Be3 {[%clk 1:31:24]} 6... Nf6 {[%clk 1:32:32]} 7. Nc3 {[%clk
1:31:49]} 7... O-O {[%clk 1:32:41]} 8. Be2 {[%clk 1:32:04]} 8... d6 {[%clk
1:33:02]} 9. O-O {[%clk 1:32:22]} 9... Bd7 {[%clk 1:33:26]} 10. Nc2 {[%clk
1:32:41]} 10... Rc8 {[%clk 1:33:15]} 11. f3 {[%clk 1:32:53]} 11... a6 {[%clk
1:31:24]} 12. Qd2 {[%clk 1:28:22]} 12... Ne5 {[%clk 1:18:13]} 13. Na3 {[%clk
1:26:14]} 13... Re8 {[%clk 1:17:17]} 14. Rac1 {[%clk 1:14:03]} 14... Be6 {[%clk
1:07:50]} 15. Nd5 {[%clk 1:12:39]} 15... Nfd7 {[%clk 1:00:52]} 16. h3 {[%clk
1:03:35]} 16... Nc6 {[%clk 0:47:56]} 17. b4 {[%clk 1:02:04]} 17... f5 {[%clk
0:35:53]} 18. Nf4 {[%clk 0:46:50]} 18... Bf7 {[%clk 0:36:03]} 19. exf5 {[%clk
0:43:02]} 19... gxf5 {[%clk 0:35:58]} 20. Nd5 {[%clk 0:36:39]} 20... Nf6 {[%clk
0:30:29]} 21. Rfd1 {[%clk 0:22:01]} 21... e5 {[%clk 0:20:04]} 22. b5 {[%clk
0:11:05]} 22... Nxd5 {[%clk 0:08:57]} 23. cxd5 {[%clk 0:10:02]} 23... Ne7 {[%clk
0:08:53]} 24. Rxc8 {[%clk 0:07:18]} 24... Qxc8 {[%clk 0:09:21]} 25. bxa6 {[%clk
0:06:36]} 25... bxa6 {[%clk 0:07:36]} 26. Bc4 {[%clk 0:06:53]} 26... f4 {[%clk
0:05:13]} 27. Bf2 {[%clk 0:07:22]} 27... Qf5 {[%clk 0:02:35]} 28. Qb4 {[%clk
0:05:44]} 28... Qg6 {[%clk 0:03:04]} 29. Bd3 {[%clk 0:04:09]} 29... Qh6 {[%clk
0:02:03]} 30. Be4 {[%clk 0:04:25]} 30... Kh8 {[%clk 0:02:30]} 31. Qe1 {[%clk
0:01:43]} 31... Rg8 {[%clk 0:01:35]} 32. Bh4 {[%clk 0:01:41]} 32... Bf6 {[%clk
0:02:04]} 33. Bxf6+ {[%clk 0:01:28]} 33... Qxf6 {[%clk 0:02:33]} 34. Qf2 {[%clk
0:01:20]} 34... Bg6 {[%clk 0:01:38]} 35. Bxg6 {[%clk 0:00:33]} 35... Qxg6 {[%clk
0:01:47]} 36. Nc2 {[%clk 0:00:33]} 36... Nf5 {[%clk 0:01:43]} 37. Rd2 {[%clk
0:00:36]} 37... Qh6 {[%clk 0:01:02]} 38. Kh2 {[%clk 0:00:32]} 38... e4 {[%clk
0:00:31]} 39. fxe4 {[%clk 0:00:34]} 39... f3 {[%clk 0:00:36]} 40. Qe1 {[%clk
0:00:32]} 40... Qf4+ {[%clk 0:00:37]} 41. Kg1 {[%clk 0:00:56]} 41... Nh4 {[%clk
0:00:37]} 42. Rf2 {[%clk 0:00:34]} 42... Qe5 {[%clk 0:00:34]} 43. g4 {[%clk
0:00:34]} 43... Qg3+ {[%clk 0:00:55]} 44. Kh1 {[%clk 0:01:03]} 44... Qxh3+
{[%clk 0:00:49]} 45. Rh2 {[%clk 0:01:29]} 45... Qxg4 {[%clk 0:00:51]} 46. Ne3
{[%clk 0:01:52]} 46... f2 {[%clk 0:00:36]} 47. Qa1+ {[%clk 0:01:48]} 47... Qg7
{[%clk 0:00:45]} 48. Qxg7+ {[%clk 0:01:55]} 48... Rxg7 {[%clk 0:01:14]} 49. Rxf2
{[%clk 0:02:12]} 49... Re7 {[%clk 0:01:08]} 50. Rf8+ {[%clk 0:00:45]} 50... Kg7
{[%clk 0:01:36]} 51. Rf4 {[%clk 0:01:15]} 51... Ng6 {[%clk 0:01:50]} 52. Nf5+
{[%clk 0:01:34]} 52... Kf6 {[%clk 0:01:33]} 53. Rf2 {[%clk 0:00:43]} 53... Rd7
{[%clk 0:00:48]} 54. Nxd6+ Ke5 {[%clk 0:00:51]} 55. Ne8 {[%clk 0:01:02]} 55...
Nf4 1/2-1/2

[Variant "Standard"]
[Site "Europe Echecs"]

[Event "Championnat du monde jeunes U12F"]
[Date "2024.11.22"]
[White "Rzadkowska, Kaja"]
[Black "Gailevska, Milana"]
[WhiteElo "1798"]
[BlackElo "1698"]
[Round "7.16"]
[Result "0-1"]
[TimeControl "5400+30"]

1. e4 {[%clk 1:30:59]} 1... e6 {[%clk 1:30:54]} 2. d4 {[%clk 1:31:25]} 2... d5
{[%clk 1:31:20]} 3. Nd2 {[%clk 1:31:51]} 3... c5 {[%clk 1:31:44]} 4. exd5 {[%clk
1:32:08]} 4... exd5 {[%clk 1:32:07]} 5. Ngf3 {[%clk 1:32:06]} 5... Nc6 {[%clk
1:32:11]} 6. Bb5 {[%clk 1:31:55]} 6... Bd6 {[%clk 1:32:25]} 7. dxc5 {[%clk
1:32:12]} 7... Bxc5 {[%clk 1:32:50]} 8. O-O {[%clk 1:32:25]} 8... Ne7 {[%clk
1:33:12]} 9. Nb3 {[%clk 1:31:39]} 9... Bd6 {[%clk 1:33:20]} 10. Re1 {[%clk
1:29:57]} 10... O-O {[%clk 1:33:31]} 11. c3 {[%clk 1:24:46]} 11... Bg4 {[%clk
1:29:07]} 12. Be2 {[%clk 1:22:59]} 12... Re8 {[%clk 1:28:00]} 13. Bg5 {[%clk
1:18:31]} 13... h6 {[%clk 1:25:22]} 14. Bh4 {[%clk 1:17:51]} 14... a6 {[%clk
1:23:05]} 15. Qd2 {[%clk 1:11:49]} 15... Qc7 {[%clk 1:14:32]} 16. Bg3 {[%clk
1:11:02]} 16... Bxg3 {[%clk 1:14:05]} 17. hxg3 {[%clk 1:11:12]} 17... Rad8
{[%clk 1:14:02]} 18. Nfd4 {[%clk 1:04:45]} 18... Bxe2 {[%clk 1:12:40]} 19. Rxe2
{[%clk 1:02:14]} 19... Ng6 {[%clk 1:09:14]} 20. Rae1 {[%clk 0:58:43]} 20... Rxe2
{[%clk 1:05:09]} 21. Rxe2 {[%clk 0:47:55]} 21... Nxd4 {[%clk 0:56:02]} 22. Nxd4
{[%clk 0:45:49]} 22... Rc8 {[%clk 0:46:51]} 23. Re3 {[%clk 0:40:27]} 23... Kf8
{[%clk 0:42:03]} 24. Nf5 {[%clk 0:28:52]} 24... Qd7 {[%clk 0:37:28]} 25. g4
{[%clk 0:25:44]} 25... b5 {[%clk 0:27:38]} 26. Rd3 {[%clk 0:18:01]} 26... Rd8
{[%clk 0:27:09]} 27. Qe3 {[%clk 0:17:25]} 27... Qc6 {[%clk 0:22:51]} 28. b3
{[%clk 0:12:21]} 28... Qe6 {[%clk 0:19:55]} 29. Qd2 {[%clk 0:09:48]} 29... Qc6
{[%clk 0:15:26]} 30. Ne3 {[%clk 0:07:56]} 30... Nf4 {[%clk 0:08:02]} 31. Rd4
{[%clk 0:08:05]} 31... Ne6 {[%clk 0:08:12]} 32. Rxd5 {[%clk 0:07:27]} 32... Rxd5
{[%clk 0:08:01]} 33. Qxd5 {[%clk 0:05:09]} 33... Qxd5 {[%clk 0:07:51]} 34. Nxd5
{[%clk 0:05:38]} 34... Nc5 {[%clk 0:07:50]} 35. Kf1 {[%clk 0:03:52]} 35... Nd3
{[%clk 0:06:09]} 36. Nb4 {[%clk 0:03:37]} 36... Nxb4 {[%clk 0:04:50]} 37. cxb4
{[%clk 0:04:06]} 37... Ke7 {[%clk 0:05:13]} 38. Ke2 {[%clk 0:04:29]} 38... Ke6
{[%clk 0:05:22]} 39. Ke3 {[%clk 0:03:34]} 39... Kd5 {[%clk 0:04:16]} 40. f4
{[%clk 0:02:47]} 40... g6 {[%clk 0:02:31]} 41. Kd3 {[%clk 0:02:57]} 41... f6
{[%clk 0:02:20]} 42. Ke3 {[%clk 0:03:03]} 42... g5 {[%clk 0:01:37]} 43. g3
{[%clk 0:03:23]} 43... gxf4+ {[%clk 0:01:15]} 44. gxf4 {[%clk 0:01:41]} 44...
Kd6 {[%clk 0:01:24]} 45. Kd4 {[%clk 0:02:03]} 45... Ke6 {[%clk 0:01:40]} 46. Ke4
{[%clk 0:02:06]} 46... f5+ {[%clk 0:01:43]} 47. Kf3 {[%clk 0:01:31]} 47... fxg4+
{[%clk 0:01:31]} 48. Kxg4 {[%clk 0:02:00]} 48... Kf6 {[%clk 0:01:55]} 49. a4
{[%clk 0:01:41]} 49... Kg6 {[%clk 0:01:57]} 50. f5+ {[%clk 0:00:54]} 50... Kf6
{[%clk 0:02:22]} 51. Kf4 {[%clk 0:00:41]} 51... h5 {[%clk 0:02:15]} 52. a5
{[%clk 0:00:47]} 52... h4 {[%clk 0:02:32]} 53. Kg4 {[%clk 0:01:16]} 53... h3
{[%clk 0:02:55]} 54. Kxh3 {[%clk 0:01:43]} 54... Kxf5 {[%clk 0:03:21]} 55. Kg3
{[%clk 0:02:00]} 55... Ke4 {[%clk 0:03:42]} 56. Kf2 {[%clk 0:02:23]} 56... Kd3
{[%clk 0:03:57]} 57. Ke1 {[%clk 0:02:40]} 57... Kc3 {[%clk 0:04:13]} 58. Kd1
{[%clk 0:03:04]} 58... Kxb3 {[%clk 0:04:31]} 59. Kc1 {[%clk 0:03:29]} 59... Kxb4
{[%clk 0:04:56]} 60. Kb2 {[%clk 0:03:54]} 60... Kxa5 {[%clk 0:05:15]} 61. Ka3
{[%clk 0:04:18]} 61... b4+ {[%clk 0:05:22]} 62. Kb3 {[%clk 0:04:43]} 62... Kb5
{[%clk 0:05:42]} 63. Kb2 {[%clk 0:05:10]} 63... a5 {[%clk 0:06:07]} 64. Ka2
{[%clk 0:05:37]} 64... a4 {[%clk 0:06:29]} 65. Kb2 {[%clk 0:06:04]} 65... Kc4
{[%clk 0:06:44]} 66. Kc2 {[%clk 0:05:52]} 66... a3 {[%clk 0:06:52]} 67. Kb1
{[%clk 0:06:18]} 67... Kb3 {[%clk 0:07:13]} 68. Ka1 {[%clk 0:06:43]} 68... Kc2
{[%clk 0:07:35]} 69. Ka2 {[%clk 0:07:10]} 69... b3+ {[%clk 0:07:56]} 0-1

[Variant "Standard"]
[Site "Europe Echecs"]

[Event "Championnat du monde jeunes U12F"]
[Date "2024.11.22"]
[White "Ivaschenko, Anna"]
[Black "Chichinadze, Anastasia"]
[WhiteElo "1732"]
[BlackElo "1682"]
[Round "7.17"]
[Result "1-0"]
[TimeControl "5400+30"]

1. d4 {[%clk 1:30:59]} 1... Nf6 {[%clk 1:30:59]} 2. Nf3 {[%clk 1:31:23]} 2... e6
{[%clk 1:31:25]} 3. e3 {[%clk 1:31:49]} 3... b6 {[%clk 1:31:52]} 4. Bd3 {[%clk
1:32:14]} 4... Bb7 {[%clk 1:32:13]} 5. O-O {[%clk 1:32:38]} 5... c5 {[%clk
1:31:55]} 6. c4 {[%clk 1:32:55]} 6... Nc6 {[%clk 1:31:06]} 7. Nc3 {[%clk
1:30:54]} 7... cxd4 {[%clk 1:28:13]} 8. exd4 {[%clk 1:30:46]} 8... d5 {[%clk
1:13:01]} 9. cxd5 {[%clk 1:28:39]} 9... Nxd5 {[%clk 1:13:07]} 10. Re1 {[%clk
1:24:29]} 10... Nxc3 {[%clk 1:06:27]} 11. bxc3 {[%clk 1:24:41]} 11... Be7 {[%clk
1:05:34]} 12. Bf4 {[%clk 1:22:23]} 12... O-O {[%clk 1:00:29]} 13. Qc2 {[%clk
1:16:40]} 13... g6 {[%clk 0:52:38]} 14. Rad1 {[%clk 1:06:42]} 14... Rc8 {[%clk
0:49:07]} 15. Qe2 {[%clk 0:59:46]} 15... Bf6 {[%clk 0:47:31]} 16. Ne5 {[%clk
0:58:03]} 16... Ne7 {[%clk 0:32:09]} 17. Bh6 {[%clk 0:41:35]} 17... Bg7 {[%clk
0:29:40]} 18. Bxg7 {[%clk 0:40:18]} 18... Kxg7 {[%clk 0:30:01]} 19. c4 {[%clk
0:38:01]} 19... Nc6 {[%clk 0:23:08]} 20. Be4 {[%clk 0:27:35]} 20... Na5 {[%clk
0:14:35]} 21. Bxb7 {[%clk 0:25:47]} 21... Nxb7 {[%clk 0:14:58]} 22. d5 {[%clk
0:20:15]} 22... exd5 {[%clk 0:03:37]} 23. Rxd5 {[%clk 0:20:11]} 23... Qh4 {[%clk
0:01:34]} 24. g3 {[%clk 0:17:35]} 24... Qh3 {[%clk 0:01:21]} 25. Nd7 {[%clk
0:16:15]} 25... Rfe8 {[%clk 0:00:38]} 26. Qb2+ {[%clk 0:16:20]} 26... Kh6 {[%clk
0:00:59]} 27. Qd2+ {[%clk 0:13:37]} 27... Kg7 {[%clk 0:01:07]} 28. Qd4+ {[%clk
0:13:23]} 28... Kh6 {[%clk 0:01:18]} 29. Rxe8 {[%clk 0:06:44]} 29... Rxe8 {[%clk
0:01:46]} 30. Ne5 {[%clk 0:06:45]} 30... Kg7 {[%clk 0:00:32]} 31. Ng4+ {[%clk
0:06:07]} 31... Kg8 {[%clk 0:00:40]} 32. Nf6+ {[%clk 0:06:20]} 32... Kf8 {[%clk
0:01:07]} 33. Nxe8 {[%clk 0:05:44]} 33... Kxe8 {[%clk 0:01:33]} 34. Qh8+ {[%clk
0:04:03]} 34... Ke7 {[%clk 0:01:57]} 35. Qb8 {[%clk 0:03:58]} 35... Nc5 {[%clk
0:02:01]} 36. Qd6+ {[%clk 0:04:11]} 36... Ke8 {[%clk 0:02:28]} 37. Qd8# {[%clk
0:04:31]} 1-0

[Variant "Standard"]
[Site "Europe Echecs"]

[Event "Championnat du monde jeunes U12F"]
[Date "2024.11.22"]
[White "Harutyunyan, Gabriela"]
[Black "Anu, Bayart-Uchral"]
[WhiteElo "1730"]
[BlackElo "1624"]
[Round "7.18"]
[Result "1-0"]
[TimeControl "5400+30"]

1. e4 {[%clk 1:30:57]} 1... e6 {[%clk 1:29:27]} 2. b3 {[%clk 1:29:40]} 2... b6
{[%clk 1:28:33]} 3. Bb2 {[%clk 1:28:55]} 3... Bb7 {[%clk 1:27:45]} 4. d3 {[%clk
1:28:47]} 4... c5 {[%clk 1:24:56]} 5. Nd2 {[%clk 1:28:18]} 5... Nf6 {[%clk
1:23:07]} 6. Ngf3 {[%clk 1:25:57]} 6... Be7 {[%clk 1:17:02]} 7. g3 {[%clk
1:25:47]} 7... O-O {[%clk 1:16:34]} 8. Bg2 {[%clk 1:25:06]} 8... d5 {[%clk
1:15:14]} 9. e5 {[%clk 1:23:42]} 9... Nfd7 {[%clk 1:14:42]} 10. O-O {[%clk
1:23:47]} 10... Nc6 {[%clk 1:09:07]} 11. Qe2 {[%clk 1:20:18]} 11... Qc7 {[%clk
1:08:40]} 12. Rfe1 {[%clk 1:17:10]} 12... Rae8 {[%clk 1:04:57]} 13. Kh1 {[%clk
1:13:34]} 13... f6 {[%clk 0:58:51]} 14. exf6 {[%clk 1:07:20]} 14... Bxf6 {[%clk
0:59:13]} 15. Bxf6 {[%clk 1:06:14]} 15... Rxf6 {[%clk 0:57:31]} 16. Ng5 {[%clk
1:02:54]} 16... h6 {[%clk 0:46:34]} 17. Qh5 {[%clk 0:55:25]} 17... Re7 {[%clk
0:44:49]} 18. Nh3 {[%clk 0:54:41]} 18... Nb4 {[%clk 0:34:08]} 19. Qd1 {[%clk
0:51:36]} 19... Ref7 {[%clk 0:26:02]} 20. a3 {[%clk 0:51:13]} 20... Nc6 {[%clk
0:25:56]} 21. Nf4 {[%clk 0:47:45]} 21... Qd6 {[%clk 0:23:27]} 22. Nf1 {[%clk
0:34:33]} 22... Ne7 {[%clk 0:20:03]} 23. Ne3 {[%clk 0:29:25]} 23... e5 {[%clk
0:17:02]} 24. Nh3 {[%clk 0:28:29]} 24... Bc6 {[%clk 0:11:49]} 25. Kg1 {[%clk
0:25:43]} 25... Nf5 {[%clk 0:10:53]} 26. Ng4 {[%clk 0:25:05]} 26... Re6 {[%clk
0:11:15]} 27. Ne3 {[%clk 0:22:25]} 27... Ne7 {[%clk 0:05:02]} 28. f4 {[%clk
0:18:13]} 28... Nf5 {[%clk 0:04:36]} 29. Nxf5 {[%clk 0:16:23]} 29... Rxf5 {[%clk
0:05:03]} 30. Qg4 {[%clk 0:16:07]} 30... Ref6 {[%clk 0:04:51]} 31. Qe2 {[%clk
0:13:39]} 31... exf4 {[%clk 0:05:06]} 32. Nxf4 {[%clk 0:11:42]} 32... Re5 {[%clk
0:05:21]} 33. Qg4 {[%clk 0:10:22]} 33... d4 {[%clk 0:04:42]} 34. h4 {[%clk
0:09:06]} 34... Bxg2 {[%clk 0:04:36]} 35. Kxg2 {[%clk 0:09:11]} 35... Rxe1
{[%clk 0:04:29]} 36. Rxe1 {[%clk 0:09:34]} 36... Ne5 {[%clk 0:04:56]} 37. Qh5
{[%clk 0:09:20]} 37... Qc6+ {[%clk 0:04:46]} 38. Re4 {[%clk 0:09:17]} 38... Nf7
{[%clk 0:04:28]} 39. Kh2 {[%clk 0:08:47]} 39... Qd7 {[%clk 0:04:26]} 40. Qe2
{[%clk 0:08:35]} 40... Kh7 {[%clk 0:01:11]} 41. Re7 {[%clk 0:07:31]} 41... Qf5
{[%clk 0:01:23]} 42. Kg2 {[%clk 0:06:39]} 42... a6 {[%clk 0:01:18]} 43. Re8
{[%clk 0:05:08]} 43... Nd6 {[%clk 0:00:38]} 44. Re5 {[%clk 0:05:31]} 44... Qd7
{[%clk 0:00:56]} 45. Kg1 {[%clk 0:04:06]} 45... Qc6 {[%clk 0:01:05]} 46. Nd5
{[%clk 0:04:26]} 46... Rf5 {[%clk 0:00:35]} 47. Rxf5 {[%clk 0:04:44]} 47... Nxf5
{[%clk 0:01:03]} 48. Qf3 {[%clk 0:04:28]} 48... Qg6 {[%clk 0:01:23]} 49. Kf2
{[%clk 0:04:49]} 49... b5 {[%clk 0:01:09]} 50. Nf4 {[%clk 0:04:44]} 50... Qe8
{[%clk 0:00:56]} 51. Nd5 {[%clk 0:04:17]} 51... Qe5 {[%clk 0:00:57]} 52. h5
{[%clk 0:04:11]} 52... Nxg3 {[%clk 0:01:05]} 53. Qxg3 {[%clk 0:04:18]} 53...
Qxd5 {[%clk 0:01:34]} 54. Qg6+ {[%clk 0:04:36]} 54... Kh8 {[%clk 0:01:58]} 55.
Qxa6 {[%clk 0:04:33]} 55... Qxh5 {[%clk 0:02:04]} 56. Qxb5 {[%clk 0:04:38]}
56... Qf5+ {[%clk 0:01:21]} 57. Ke1 {[%clk 0:04:44]} 57... Qe5+ {[%clk 0:01:19]}
58. Kd1 {[%clk 0:04:54]} 58... h5 {[%clk 0:01:41]} 59. Qd7 {[%clk 0:05:04]}
59... Kh7 {[%clk 0:01:12]} 60. Qh3 {[%clk 0:05:00]} 60... Qd5 {[%clk 0:00:38]}
61. a4 {[%clk 0:05:15]} 61... Kh6 {[%clk 0:00:46]} 62. a5 {[%clk 0:05:03]} 62...
c4 {[%clk 0:00:46]} 63. a6 {[%clk 0:04:52]} 63... cxb3 {[%clk 0:00:54]} 64. c4
{[%clk 0:02:31]} 64... dxc3 {[%clk 0:00:39]} 65. Qe3+ {[%clk 0:02:57]} 65... g5
{[%clk 0:01:03]} 66. Qb6+ {[%clk 0:03:21]} 66... Kg7 67. Qb7+ {[%clk 0:03:46]}
67... Qf7 {[%clk 0:00:38]} 68. Qxf7+ {[%clk 0:04:10]} 68... Kxf7 {[%clk
0:01:04]} 69. a7 {[%clk 0:04:35]} 1-0

[Variant "Standard"]
[Site "Europe Echecs"]